bitfinex-derivatives/quotes_BNBF0:USTF0_20250128
["timestamp","ask_amount","ask_price","bid_price","bid_amount"]
[1738059194945,1.10899754,675.56,674.49,1.10769996]
[1738059195250,0.27222263,675.55,674.49,1.10769996]
[1738059198149,0.27222263,675.55,674.45,1.10769996]
[1738059198344,0.27222263,675.58,674.45,1.10769996]
[1738059198546,0.27222263,675.57,674.45,1.10769996]
[1738059198745,0.27222263,675.58,674.45,1.10769996]
[1738059198945,0.27222263,675.57,674.45,1.10769996]
[1738059199149,0.27222263,675.58,674.45,1.10769996]
[1738059200243,0.27221932,675.57,674.45,1.10769996]
[1738059200550,1.10899754,675.59,674.45,1.10769996]
[1738059200551,0.27221932,675.56,674.45,1.10769996]
[1738059200744,1.10899754,675.59,674.45,1.10769996]
[1738059200943,0.27222425,675.55,674.45,1.10769996]
[1738059201150,0.27222559,675.54,674.47,1.10769996]
[1738059201350,0.27222559,675.56,674.47,1.10769996]
[1738059201548,0.27222559,675.55,674.47,1.10769996]
[1738059201748,0.27222559,675.54,674.47,1.10769996]
[1738059201951,0.27222559,675.56,674.47,1.10769996]
[1738059202144,0.27222559,675.55,674.47,1.10769996]
[1738059202347,1.10899754,675.57,674.47,1.10769996]
[1738059202348,0.27222559,675.56,674.47,1.10769996]
[1738059202549,0.27222559,675.55,674.47,1.10769996]
[1738059202745,0.27222559,675.56,674.47,1.10769996]
[1738059203453,0.27222559,675.56,674.41,0.2965555]
[1738059203454,1.10899754,675.51,674.51,1.10769996]
[1738059203647,0.27222559,675.5,674.51,1.10769996]
[1738059205951,0.27222559,675.5,674.49,1.10769996]
[1738059206248,0.27222559,675.49,674.49,1.10769996]
[1738059206448,0.27222559,675.51,674.49,1.10769996]
[1738059206754,0.27222559,675.5,674.49,1.10769996]
[1738059207048,0.27222559,675.49,674.49,1.10769996]
[1738059207247,0.27222559,675.48,674.49,1.10769996]
[1738059207451,0.27222559,675.47,674.49,1.10769996]
[1738059207651,0.27222559,675.46,674.49,1.10769996]
[1738059207849,0.27222559,675.51,674.49,1.10769996]
[1738059208052,0.27222559,675.5,674.49,1.10769996]
[1738059208251,0.27222559,675.51,674.49,1.10769996]
[1738059209051,0.27222559,675.51,674.46,1.10769996]
[1738059209250,1.10899754,675.55,674.46,1.10769996]
[1738059209251,0.27222559,675.5,674.46,1.10769996]
[1738059209452,0.27222559,675.49,674.46,1.10769996]
[1738059209651,0.27222559,675.48,674.46,1.10769996]
[1738059209851,0.27222559,675.47,674.46,1.10769996]
[1738059210052,0.27222559,675.46,674.46,1.10769996]
[1738059210258,0.27222559,675.54,674.46,1.10769996]
[1738059210456,0.27222559,675.53,674.46,1.10769996]
[1738059210653,0.27222559,675.54,674.46,1.10769996]
[1738059210955,0.27222559,675.53,674.46,1.10769996]
[1738059211158,0.27222559,675.54,674.46,1.10769996]
[1738059211458,0.27222744,675.53,674.46,1.10769996]
[1738059211659,0.27222744,675.54,674.46,1.10769996]
[1738059211864,0.27222744,675.53,674.46,1.10769996]
[1738059212053,0.27222744,675.54,674.46,1.10769996]
[1738059212257,0.29603315,675.6,674.44,1.10769996]
[1738059212258,0.27222744,675.53,674.44,1.10769996]
[1738059212459,0.27222744,675.55,674.44,1.10769996]
[1738059212657,0.27222744,675.54,674.44,1.10769996]
[1738059212859,0.27222744,675.55,674.44,1.10769996]
[1738059213054,0.27222791,675.54,674.44,1.10769996]
[1738059213258,0.27222791,675.55,674.44,1.10769996]
[1738059214161,0.27222791,675.55,674.41,0.2965555]
[1738059214162,0.27222791,675.55,674.43,1.10769996]
[1738059214361,1.10899754,675.57,674.43,1.40424667]
[1738059214661,1.10899754,675.57,674.08,1.10769996]
[1738059214662,0.29603315,675.6,674.44,0.29654231]
[1738059226067,0.29603315,675.6,674.45,1.10549126]
[1738059226266,0.29603315,675.6,674.46,0.29653352]
[1738059232372,0.29603315,675.6,674.49,1.10549126]
[1738059232569,0.29603315,675.6,674.5,0.29651593]
[1738059235377,0.29603315,675.6,674.52,1.10549126]
[1738059236374,0.27216313,675.59,674.52,1.10549126]
[1738059236574,0.29603315,675.6,674.52,1.10549126]
[1738059236775,0.27216226,675.59,674.52,1.10549126]
[1738059237579,0.27216226,675.59,674.5,0.29651593]
[1738059238974,0.29603315,675.6,674.5,0.29651593]
[1738059239879,1.10817855,675.81,674.5,0.29651593]
[1738059240081,0.27213838,675.8,674.5,0.29651593]
[1738059242284,1.38031693,675.8,674.6,1.10549126]
[1738059242484,0.27213838,675.79,674.6,1.10549126]
[1738059243183,1.10817855,675.8,674.6,1.10549126]
[1738059244784,1.10817855,675.8,674.6,1.40196324]
[1738059244984,1.10817855,675.8,674.61,0.29646758]
[1738059247685,5.32995709,683.53,674.61,0.29646758]
[1738059247686,1.10817855,675.97,674.61,0.29646758]
[1738059247881,0.27206474,675.96,674.61,0.29646758]
[1738059248480,0.25780378,675.96,674.61,0.29646758]
[1738059250187,0.27203401,675.95,674.61,0.29646758]
[1738059250386,1.10817855,675.97,674.61,0.29646758]
[1738059250588,0.2720309,675.96,674.61,0.29646758]
[1738059251287,0.2720309,675.96,674.86,1.10549126]
[1738059251482,1.54572206,676.05,674.86,1.10549126]
[1738059251681,0.27202885,676.04,674.86,1.10549126]
[1738059253790,0.27203148,676.03,674.86,1.10549126]
[1738059254089,0.27203148,676.02,674.86,1.10549126]
[1738059254289,0.27203148,676.01,674.86,1.10549126]
[1738059254490,0.27203148,676.0,674.86,1.10549126]
[1738059254692,0.27203148,676.04,674.78,1.10549126]
[1738059255093,0.27203148,676.04,674.79,0.2963885]
[1738059260196,1.54572206,676.05,674.79,0.2963885]
[1738059271209,0.27209009,676.04,674.79,0.2963885]
[1738059272804,0.27208896,676.03,674.79,0.2963885]
[1738059273108,0.27208896,676.02,674.79,0.2963885]
[1738059273310,0.27208896,676.04,674.79,0.2963885]
[1738059273509,0.27208896,676.03,674.79,0.2963885]
[1738059273708,0.27208896,676.02,674.79,0.2963885]
[1738059273908,0.27208896,676.01,674.79,0.2963885]
[1738059274109,0.27208896,676.04,674.79,0.2963885]
[1738059274303,0.27208896,676.03,674.79,0.2963885]
[1738059274708,0.27208896,676.02,674.79,0.2963885]
[1738059274905,0.27208896,676.01,674.79,0.2963885]
[1738059275105,0.27208896,676.0,674.79,0.2963885]
[1738059275307,0.27208896,675.99,674.79,0.2963885]
[1738059275606,1.54572206,676.05,674.79,0.2963885]
[1738059275607,0.27208896,675.98,674.79,0.2963885]
[1738059275807,0.27208896,676.04,674.79,0.2963885]
[1738059276004,1.54568201,675.98,674.79,0.2963885]
[1738059276205,0.27208896,675.97,674.79,0.2963885]
[1738059279509,1.54568201,675.98,674.79,0.2963885]
[1738059279714,0.27207565,675.97,674.79,0.2963885]
[1738059286417,1.10817855,675.93,674.79,1.40187976]
[1738059286620,0.27207565,675.92,674.79,1.40187976]
[1738059290122,1.3802542,675.92,674.79,0.2963885]
[1738059290323,0.27207565,675.91,674.79,0.2963885]
[1738059293027,1.10817855,675.92,674.79,0.2963885]
[1738059293320,0.27208633,675.91,674.79,0.2963885]
[1738059296425,1.10817855,675.88,674.79,1.40187976]
[1738059296627,0.27208633,675.87,674.79,1.40187976]
[1738059299329,0.27208633,675.87,674.79,0.2963885]
[1738059299532,0.27208633,675.9,674.79,0.2963885]
[1738059299727,1.10817855,675.91,674.79,0.2963885]
[1738059299927,0.2720808,675.9,674.79,0.2963885]
[1738059300926,1.10817855,675.91,674.79,0.2963885]
[1738059302832,1.54557904,676.09,674.79,0.2963885]
[1738059302833,1.10817855,676.01,674.85,1.10549126]
[1738059304833,0.27203955,676.0,674.85,1.10549126]
[1738059305533,0.27203955,676.0,674.86,0.29635776]
[1738059306029,0.27203955,676.08,674.86,0.29635776]
[1738059306230,1.10817855,676.09,674.86,0.29635776]
[1738059306430,0.27203101,676.08,674.86,0.29635776]
[1738059311338,1.10817855,676.09,674.86,0.29635776]
[1738059311538,0.27202387,676.08,674.86,0.29635776]
[1738059312431,1.10817855,676.15,674.86,0.29635776]
[1738059312432,0.27202387,676.14,674.86,0.29635776]
[1738059312635,1.10817855,676.15,674.86,0.29635776]
[1738059312636,0.27202387,676.07,674.86,0.29635776]
[1738059312834,0.27202387,676.06,674.86,0.29635776]
[1738059313036,0.27202387,676.14,674.86,0.29635776]
[1738059313234,0.27202387,676.13,674.86,0.29635776]
[1738059313539,0.27202387,676.12,674.86,0.29635776]
[1738059313741,0.27201797,676.11,674.86,0.29635776]
[1738059313938,0.27201797,676.1,674.86,0.29635776]
[1738059314141,0.27201797,676.14,674.86,0.29635776]
[1738059314342,0.27201797,676.13,674.86,0.29635776]
[1738059314542,0.27201797,676.12,674.86,0.29635776]
[1738059314743,0.27201782,676.11,674.86,0.29635776]
[1738059314938,0.27201782,676.14,674.86,0.29635776]
[1738059315138,0.27201782,676.13,674.86,0.29635776]
[1738059315343,0.27201782,676.12,674.86,0.29635776]
[1738059315539,0.27201782,676.11,674.86,0.29635776]
[1738059315740,0.27201782,676.1,674.86,0.29635776]
[1738059315940,0.27201782,676.18,674.86,0.29635776]
[1738059316142,0.27201782,676.17,674.86,0.29635776]
[1738059316339,0.27201782,676.18,674.86,0.29635776]
[1738059319247,0.27201782,676.24,674.86,0.29635776]
[1738059319542,0.27201782,676.23,674.86,0.29635776]
[1738059319749,0.27201782,676.24,674.86,0.29635776]
[1738059319947,0.27201782,676.23,674.86,0.29635776]
[1738059320141,0.27201782,676.22,674.86,0.29635776]
[1738059320344,0.27201782,676.24,674.86,0.29635776]
[1738059320541,0.27201782,676.23,674.86,0.29635776]
[1738059320744,0.27201782,676.24,674.86,0.29635776]
[1738059321044,0.27201782,676.23,674.86,0.29635776]
[1738059321244,0.27201782,676.22,674.86,0.29635776]
[1738059321543,1.10817855,676.25,674.86,0.29635776]
[1738059322249,1.10817855,676.27,674.86,0.29635776]
[1738059322448,1.10817855,676.27,674.88,1.10549126]
[1738059322646,1.10817855,676.27,674.9,0.29634019]
[1738059325650,1.54503008,676.38,674.9,0.29634019]
[1738059328652,0.27192717,676.37,674.9,0.29634019]
[1738059331449,0.27192717,676.37,674.93,1.10549126]
[1738059333155,0.27192717,676.37,674.94,0.29632263]
[1738059333655,0.27191178,676.36,674.94,0.29632263]
[1738059333856,0.27191178,676.37,674.94,0.29632263]
[1738059334048,0.27191178,676.35,674.94,0.29632263]
[1738059334253,0.27191178,676.34,674.94,0.29632263]
[1738059334456,0.27191178,676.37,674.94,0.29632263]
[1738059334652,1.54503008,676.38,674.96,1.10549126]
[1738059334653,0.27191178,676.36,674.96,1.10549126]
[1738059334852,0.27191178,676.35,674.97,0.29630946]
[1738059335055,0.27191178,676.34,674.97,0.29630946]
[1738059335250,1.54503008,676.38,674.97,0.29630946]
[1738059335457,0.27192205,676.37,674.97,0.29630946]
[1738059336054,1.54503008,676.38,674.97,0.29630946]
[1738059336259,0.2719228,676.37,674.97,0.29630946]
[1738059337958,0.2719228,676.37,674.97,1.40180072]
[1738059341465,0.2719228,676.37,674.97,0.29630946]
[1738059342060,1.54503008,676.38,674.97,0.29630946]
[1738059342363,0.2719633,676.37,674.97,0.29630946]
[1738059347163,0.27195612,676.36,674.97,0.29630946]
[1738059347364,1.84072185,676.38,674.97,0.29630946]
[1738059347365,0.27195612,676.35,674.97,0.29630946]
[1738059347570,0.27195612,676.37,674.97,0.29630946]
[1738059347767,0.27195612,676.36,674.97,0.29630946]
[1738059347971,0.27195612,676.37,674.97,0.29630946]
[1738059348272,0.27195612,676.36,674.97,0.29630946]
[1738059348566,0.27195612,676.35,674.97,0.29630946]
[1738059348766,0.27195612,676.37,674.97,0.29630946]
[1738059348966,0.27195612,676.36,674.97,0.29630946]
[1738059349170,0.27195612,676.37,674.97,0.29630946]
[1738059349372,0.27195612,676.36,674.97,0.29630946]
[1738059349570,0.27195612,676.37,674.97,0.29630946]
[1738059352272,1.84072185,676.38,674.97,0.29630946]
[1738059352577,0.27195728,676.37,674.97,0.29630946]
[1738059354377,1.10817855,676.29,675.05,1.10549126]
[1738059354675,0.27195728,676.28,675.05,1.10549126]
[1738059357079,1.10817855,676.26,675.07,1.10549126]
[1738059357280,0.27195728,676.25,675.07,1.10549126]
[1738059357578,0.27195853,676.24,675.07,1.10549126]
[1738059357778,0.27195853,676.25,675.07,1.10549126]
[1738059357978,0.27195853,676.24,675.07,1.10549126]
[1738059358175,0.27195853,676.23,675.07,1.10549126]
[1738059358478,0.27195853,676.22,675.07,1.10549126]
[1738059358673,1.10817855,676.26,675.07,1.10549126]
[1738059358674,0.27195853,676.21,675.07,1.10549126]
[1738059358877,0.27195853,676.25,675.07,1.10549126]
[1738059359077,0.27195853,676.24,675.07,1.10549126]
[1738059359278,0.27195853,676.25,675.07,1.10549126]
[1738059359475,0.27195853,676.24,675.07,1.10549126]
[1738059359681,0.27195853,676.23,675.07,1.10549126]
[1738059359981,0.27195853,676.22,675.07,1.10549126]
[1738059360182,1.38013708,676.25,675.05,1.10549126]
[1738059360377,0.27195853,676.24,675.05,1.10549126]
[1738059364587,0.27195853,676.24,674.99,1.10549126]
[1738059364785,0.27195853,676.27,675.0,0.29629629]
[1738059364981,0.27195853,676.26,675.0,0.29629629]
[1738059365185,0.27195853,676.27,675.0,0.29629629]
[1738059365486,0.27195853,676.26,675.0,0.29629629]
[1738059365682,0.27195853,676.25,675.0,0.29629629]
[1738059365886,0.27195853,676.3,675.0,0.29629629]
[1738059366086,0.27195853,676.29,675.0,0.29629629]
[1738059366287,0.27195853,676.28,675.0,0.29629629]
[1738059366587,0.27195853,676.27,675.0,0.29629629]
[1738059366787,0.27195853,676.26,675.0,0.29629629]
[1738059367082,0.27195853,676.25,675.0,0.29629629]
[1738059367286,0.27195853,676.3,675.0,0.29629629]
[1738059367488,1.54493291,676.31,675.0,0.29629629]
[1738059367787,0.27195107,676.3,675.0,0.29629629]
[1738059368390,1.10776858,676.29,675.05,1.10308057]
[1738059368590,0.27195107,676.28,675.05,1.10308057]
[1738059369193,1.10776858,676.29,675.05,1.10308057]
[1738059369491,0.27195662,676.28,675.05,1.10308057]
[1738059370895,1.10776858,676.21,675.11,1.10308057]
[1738059373197,1.54493291,676.31,675.0,1.8412292]
[1738059379998,0.27198644,676.3,675.0,1.8412292]
[1738059380398,0.27198644,676.3,675.0,0.29629629]
[1738059380595,0.56771318,676.3,675.0,0.29629629]
[1738059380799,0.27198644,676.29,675.0,0.29629629]
[1738059382608,1.10776858,676.22,675.0,0.29629629]
[1738059383302,1.545173,676.21,675.0,0.29629629]
[1738059384601,0.27198644,676.2,675.0,0.29629629]
[1738059386399,0.27199262,676.19,675.0,0.29629629]
[1738059386603,0.27199262,676.18,675.0,0.29629629]
[1738059386804,0.27199262,676.2,675.0,0.29629629]
[1738059387003,0.27199262,676.19,675.0,0.29629629]
[1738059387200,0.27199262,676.18,675.0,0.29629629]
[1738059387399,0.27199262,676.17,675.0,0.29629629]
[1738059387600,0.27199262,676.16,675.0,0.29629629]
[1738059387801,0.27199262,676.2,675.0,0.29629629]
[1738059388000,0.27199262,676.19,675.0,0.29629629]
[1738059388205,2.65294158,676.21,675.0,0.29629629]
[1738059388206,0.27199262,676.18,675.0,0.29629629]
[1738059388503,1.10776858,676.24,675.0,0.29629629]
[1738059388899,0.27197056,676.23,675.0,0.29629629]
[1738059389106,1.10776858,676.24,675.0,0.29629629]
[1738059389705,0.27195825,676.23,675.0,0.29629629]
[1738059391004,1.54506438,676.29,675.0,0.29629629]
[1738059395402,0.29572674,676.3,675.0,0.29629629]
[1738059400918,0.27194352,676.29,675.0,0.29629629]
[1738059402719,0.27194164,676.28,675.0,0.29629629]
[1738059402913,0.27194164,676.29,675.0,0.29629629]
[1738059403117,0.27194164,676.28,675.0,0.29629629]
[1738059403313,0.29572674,676.3,675.0,0.29629629]
[1738059407019,0.29572674,676.3,675.07,1.102243]
[1738059407220,0.29572674,676.3,675.08,0.29626118]
[1738059409525,1.10707535,676.46,675.08,0.29626118]
[1738059411325,1.54455006,676.55,675.08,0.29626118]
[1738059411326,0.27184307,676.45,675.08,0.29626118]
[1738059411523,0.27184307,676.44,675.08,0.29626118]
[1738059411726,0.27184307,676.43,675.08,0.29626118]
[1738059411922,1.54455006,676.55,675.08,0.29626118]
[1738059412122,0.27184539,676.54,675.08,0.29626118]
[1738059412722,1.54455006,676.55,675.08,0.29626118]
[1738059412922,0.27184209,676.54,675.08,0.29626118]
[1738059417823,1.54455006,676.55,675.17,1.0990809]
[1738059418022,0.27183371,676.54,675.18,0.2962173]
[1738059421224,1.54455006,676.55,675.18,0.2962173]
[1738059421430,0.27183634,676.54,675.18,0.2962173]
[1738059422832,0.27183634,676.54,675.18,1.3952982]
[1738059424433,1.54455006,676.55,675.18,1.3952982]
[1738059424636,0.27184024,676.53,675.18,1.3952982]
[1738059424834,0.27184024,676.52,675.18,1.3952982]
[1738059425032,0.27184024,676.54,675.18,1.3952982]
[1738059425233,0.27184024,676.53,675.18,1.3952982]
[1738059425428,0.27184024,676.52,675.18,1.3952982]
[1738059425630,0.27184024,676.54,675.18,0.2962173]
[1738059425833,0.27184024,676.53,675.18,0.2962173]
[1738059426134,1.54455006,676.55,675.18,0.2962173]
[1738059426337,0.27183443,676.54,675.18,0.2962173]
[1738059427130,0.27183443,676.53,675.18,0.2962173]
[1738059427335,0.27183443,676.52,675.18,0.2962173]
[1738059427537,1.54432159,676.66,675.18,0.2962173]
[1738059427934,0.27182259,676.65,675.18,0.2962173]
[1738059430532,1.54420166,676.73,675.18,0.2962173]
[1738059430838,0.27178405,676.72,675.18,0.2962173]
[1738059433042,0.27178405,676.72,675.21,1.0990809]
[1738059433540,0.27178405,676.72,675.23,0.29619537]
[1738059434440,0.27182929,676.71,675.23,0.29619537]
[1738059434641,0.27182929,676.72,675.23,0.29619537]
[1738059434843,0.27182929,676.71,675.23,0.29619537]
[1738059435042,0.27182929,676.72,675.23,0.29619537]
[1738059436036,0.27185084,676.71,675.23,0.29619537]
[1738059436238,0.27185084,676.72,675.23,0.29619537]
[1738059436439,0.27185084,676.71,675.23,0.29619537]
[1738059436640,0.27185084,676.7,675.23,0.29619537]
[1738059436844,0.27185084,676.69,675.23,0.29619537]
[1738059437045,0.27185084,676.68,675.23,0.29619537]
[1738059437244,0.27185084,676.67,675.23,0.29619537]
[1738059437447,1.54420166,676.73,675.23,0.29619537]
[1738059437747,0.27185278,676.72,675.23,0.29619537]
[1738059438246,0.29554757,676.71,675.23,0.29619537]
[1738059438444,0.27185278,676.7,675.23,0.29619537]
[1738059438645,0.29555631,676.69,675.23,0.29619537]
[1738059438845,0.27185278,676.68,675.23,0.29619537]
[1738059439046,0.29556504,676.67,675.23,0.29619537]
[1738059439347,0.27185278,676.66,675.23,0.29619537]
[1738059440944,1.54440154,676.65,675.23,0.29619537]
[1738059441145,0.27186328,676.64,675.23,0.29619537]
[1738059446249,1.10355306,676.63,675.23,0.29619537]
[1738059446448,0.27186328,676.62,675.23,0.29619537]
[1738059450452,0.29559125,676.61,675.23,0.29619537]
[1738059450754,0.27186328,676.6,675.23,0.29619537]
[1738059451053,0.29559125,676.61,675.23,0.29619537]
[1738059451254,0.2719086,676.6,675.23,0.29619537]
[1738059452553,0.29559999,676.59,675.23,0.29619537]
[1738059452753,0.2719086,676.58,675.23,0.29619537]
[1738059452953,0.29560873,676.57,675.23,0.29619537]
[1738059453147,0.2719086,676.56,675.23,0.29619537]
[1738059453351,0.29561747,676.55,675.23,0.29619537]
[1738059453553,0.2719086,676.54,675.23,0.29619537]
[1738059454349,0.29561747,676.55,675.23,0.29619537]
[1738059454554,0.27189143,676.54,675.23,0.29619537]
[1738059455751,1.39917053,676.55,675.23,0.29619537]
[1738059457755,0.29561747,676.55,675.23,0.29619537]
[1738059464260,0.29561747,676.55,675.31,1.0990809]
[1738059464561,0.29561747,676.55,675.32,0.29615589]
[1738059466961,0.29561747,676.55,675.35,1.0990809]
[1738059467160,0.29561747,676.55,675.36,0.29613835]
[1738059480978,0.27183097,676.54,675.36,0.29613835]
[1738059482573,0.29561747,676.55,675.36,0.29613835]
[1738059482773,0.27183131,676.54,675.36,0.29613835]
[1738059489386,0.27179417,676.53,675.46,1.0990809]
[1738059489683,0.29561747,676.55,675.46,1.0990809]
[1738059492380,0.29561747,676.55,675.52,1.0990809]
[1738059495687,0.29561747,676.55,675.57,1.0990809]
[1738059498287,0.29561747,676.55,675.36,0.29613835]
[1738059498288,0.29561747,676.55,675.59,1.0990809]
[1738059501588,1.39917053,676.55,675.52,1.0990809]
[1738059504295,1.39917053,676.55,675.51,1.0990809]
[1738059504296,1.10355306,676.53,675.51,1.0990809]
[1738059506601,1.39917053,676.55,675.49,1.0990809]
[1738059510002,1.39917053,676.55,675.36,0.29613835]
[1738059510003,1.10355306,676.51,675.51,1.0990809]
[1738059513407,1.10355306,676.51,675.36,0.29613835]
[1738059513606,1.54428161,676.54,675.36,0.29613835]
[1738059518210,1.83990345,676.54,675.36,0.29613835]
[1738059519114,0.29562621,676.53,675.36,0.29613835]
[1738059524716,1.10355306,676.51,675.36,0.29613835]
[1738059524915,0.29563932,676.5,675.36,0.29613835]
[1738059534131,1.10355306,676.49,675.36,0.29613835]
[1738059534330,0.29564806,676.48,675.36,0.29613835]
[1738059535026,1.5447386,676.47,675.36,0.29613835]
[1738059535226,1.84039103,676.47,675.36,0.29613835]
[1738059535928,2.94394409,676.47,675.36,0.29613835]
[1738059536231,1.84039103,676.47,675.36,0.29613835]
[1738059540036,1.10534393,676.46,675.36,0.29613835]
[1738059542937,1.84039103,676.47,675.36,0.29613835]
[1738059548044,0.2956568,676.46,675.36,0.29613835]
[1738059548745,0.2956568,676.46,675.07,1.10130139]
[1738059549146,0.2956568,676.46,675.11,1.10130139]
[1738059552352,0.2956568,676.46,674.94,1.54493291]
[1738059552353,1.10534393,676.27,675.05,1.10130139]
[1738059553051,1.54510439,676.26,675.05,1.10130139]
[1738059556055,1.54510439,676.26,675.04,1.10130139]
[1738059558159,0.27197273,676.25,675.04,1.10130139]
[1738059558757,0.27197273,676.25,675.02,1.10130139]
[1738059558954,1.54510439,676.26,675.02,1.10130139]
[1738059559153,0.27197082,676.25,675.02,1.10130139]
[1738059560756,1.54510439,676.26,675.02,1.10130139]
[1738059560951,0.27196802,676.25,675.02,1.10130139]
[1738059561350,1.10534393,676.21,675.1,1.10130139]
[1738059561556,0.27196802,676.2,675.1,1.10130139]
[1738059563255,0.27195707,676.19,675.1,1.10130139]
[1738059563455,0.27195707,676.2,675.1,1.10130139]
[1738059563658,0.27195707,676.19,675.1,1.10130139]
[1738059563859,0.27195707,676.18,675.1,1.10130139]
[1738059564058,0.27195707,676.2,675.1,1.10130139]
[1738059564259,0.27195681,676.19,675.1,1.10130139]
[1738059564460,0.27195681,676.18,675.1,1.10130139]
[1738059564655,0.27195681,676.2,675.1,1.10130139]
[1738059564860,0.27195681,676.19,675.1,1.10130139]
[1738059565063,0.27195681,676.25,675.1,1.10130139]
[1738059565363,1.54510439,676.26,675.1,1.10130139]
[1738059565559,0.27195775,676.24,675.1,1.10130139]
[1738059565755,0.27195775,676.23,675.1,1.10130139]
[1738059565960,0.27195775,676.25,675.1,1.10130139]
[1738059568568,0.27195775,676.25,675.11,1.10130139]
[1738059569467,1.54510439,676.26,675.11,1.10130139]
[1738059569668,0.27194229,676.25,675.11,1.10130139]
[1738059569868,0.27194229,676.25,674.97,1.54497863]
[1738059570068,0.27194229,676.25,674.98,0.29630507]
[1738059570269,1.54510439,676.26,674.98,0.29630507]
[1738059570465,0.27194217,676.25,674.98,0.29630507]
[1738059571966,1.54510439,676.26,674.98,0.29630507]
[1738059572769,0.27200924,676.25,674.98,0.29630507]
[1738059573566,1.54510439,676.26,674.98,0.29630507]
[1738059573767,0.27202164,676.24,674.98,0.29630507]
[1738059574072,0.27202164,676.23,674.98,0.29630507]
[1738059574367,0.27202164,676.22,674.98,0.29630507]
[1738059574563,0.27202164,676.25,674.98,0.29630507]
[1738059574766,0.56777462,676.24,674.98,0.29630507]
[1738059575065,0.27202164,676.23,674.98,0.29630507]
[1738059575463,0.29576173,676.22,674.98,0.29630507]
[1738059575766,0.27202164,676.21,674.98,0.29630507]
[1738059576669,0.27202164,676.2,674.98,0.29630507]
[1738059576969,0.29576173,676.22,674.98,0.29630507]
[1738059577163,0.27202139,676.21,674.98,0.29630507]
[1738059577365,1.54750346,676.19,674.98,0.29630507]
[1738059577564,0.27202139,676.18,674.98,0.29630507]
[1738059578268,1.54750346,676.19,674.98,0.29630507]
[1738059578468,0.27201958,676.17,674.98,0.29630507]
[1738059578670,0.27201958,676.16,674.98,0.29630507]
[1738059578869,0.27201958,676.18,674.98,0.29630507]
[1738059579068,0.27201958,676.17,674.98,0.29630507]
[1738059579265,1.54750346,676.19,674.98,0.29630507]
[1738059579266,0.27201958,676.18,674.98,0.29630507]
[1738059579467,0.27201958,676.17,674.98,0.29630507]
[1738059579671,0.27201958,676.16,674.98,0.29630507]
[1738059579971,1.54750346,676.19,674.98,0.29630507]
[1738059580165,0.27202032,676.15,674.98,0.29630507]
[1738059580373,0.27202032,676.14,674.98,0.29630507]
[1738059580572,0.27202032,676.18,674.98,0.29630507]
[1738059580766,1.54750346,676.19,674.98,0.29630507]
[1738059580767,0.27202032,676.17,674.98,0.29630507]
[1738059581070,1.54750346,676.19,674.98,0.29630507]
[1738059581373,0.27202032,676.18,674.98,0.29630507]
[1738059582168,0.27202032,676.17,674.98,0.29630507]
[1738059582373,0.27202032,676.16,674.98,0.29630507]
[1738059582573,0.27202032,676.15,674.98,0.29630507]
[1738059582873,0.27202032,676.14,674.98,0.29630507]
[1738059583072,0.27202032,676.18,674.98,0.29630507]
[1738059583272,0.27202032,676.17,674.98,0.29630507]
[1738059583472,1.54750346,676.19,674.98,0.29630507]
[1738059583473,0.27202034,676.16,674.98,0.29630507]
[1738059583674,0.27202034,676.15,674.98,0.29630507]
[1738059583973,0.27202034,676.14,674.98,0.29630507]
[1738059584169,0.27202034,676.13,674.98,0.29630507]
[1738059584373,0.27202034,676.12,674.98,0.29630507]
[1738059584570,0.27202034,676.11,674.98,0.29630507]
[1738059584772,0.27202034,676.18,674.98,0.29630507]
[1738059584970,0.27202034,676.17,674.98,0.29630507]
[1738059585174,0.27202034,676.18,674.98,0.29630507]
[1738059586676,1.54750346,676.19,674.98,0.29630507]
[1738059586875,1.10641696,676.12,674.98,0.29630507]
[1738059587074,0.27200247,676.11,674.98,0.29630507]
[1738059587676,1.54535026,676.1,674.98,0.29630507]
[1738059587872,0.27200247,676.09,674.98,0.29630507]
[1738059589982,1.54535026,676.1,674.98,0.29630507]
[1738059590281,0.2720157,676.09,674.98,0.29630507]
[1738059594983,1.54535026,676.1,674.98,0.29630507]
[1738059595285,0.2720248,676.09,674.98,0.29630507]
[1738059598389,0.27202124,676.08,674.98,0.29630507]
[1738059598685,0.27202124,676.07,674.98,0.29630507]
[1738059598890,0.27202124,676.09,674.98,0.29630507]
[1738059599085,0.27202124,676.08,674.98,0.29630507]
[1738059599286,1.54535026,676.1,674.98,0.29630507]
[1738059599287,0.27202124,676.09,674.98,0.29630507]
[1738059601486,0.27202124,676.15,674.98,0.29630507]
[1738059601688,1.54537885,676.1,674.98,0.29630507]
[1738059601885,1.37814296,676.09,674.98,0.29630507]
[1738059602187,0.27201015,676.08,674.98,0.29630507]
[1738059605391,0.27201015,676.07,674.98,0.29630507]
[1738059605585,0.27201015,676.06,674.98,0.29630507]
[1738059605785,0.27201015,676.09,674.98,0.29630507]
[1738059605988,0.27201015,676.08,674.98,0.29630507]
[1738059606188,0.27201015,676.07,674.98,0.29630507]
[1738059606389,0.27201015,676.06,674.98,0.29630507]
[1738059606587,0.27201015,676.05,674.98,0.29630507]
[1738059606784,0.27201015,676.04,674.98,0.29630507]
[1738059606985,0.27201015,676.03,674.98,0.29630507]
[1738059607185,0.27201015,676.09,674.98,0.29630507]